bitfinex-derivatives/quotes_BTCF0:USTF0_20251210
["timestamp","ask_amount","ask_price","bid_price","bid_amount"]
[1765393482806,0.0108605,92078.0,92062.0,0.03842265]
[1765393483003,0.48269875,92110.0,92060.0,0.03842265]
[1765393483199,0.0108574,92105.0,92074.0,0.0108609]
[1765393483391,0.010855,92125.0,92114.0,0.0108562]
[1765393483596,0.48269875,92160.0,92103.0,0.0108576]
[1765393483804,0.48269875,92160.0,92093.0,0.03842265]
[1765393483805,0.48269875,92160.0,92132.0,0.0108541]
[1765393484008,0.48269875,92160.0,92108.0,0.010857]
[1765393484009,0.0108522,92149.0,92112.0,0.0108564]
[1765393484209,0.0108525,92147.0,92137.0,0.0108535]
[1765393484395,0.0108513,92157.0,92122.0,0.0108553]
[1765393484793,0.00016276,92149.0,92130.0,0.00016276]
[1765393485195,0.0108543,92132.0,92130.0,0.00016276]
[1765393485498,0.0108591,92091.0,92083.0,0.0108598]
[1765393485706,0.054267,92139.0,92070.0,0.03842265]
[1765393485707,0.0108605,92078.0,92070.0,0.03842265]
[1765393485895,0.0108605,92078.0,92036.0,0.0108654]
[1765393485896,0.0108605,92078.0,92057.0,0.03842265]
[1765393486210,0.48269875,92110.0,92066.0,0.0108619]
[1765393486397,0.48269875,92110.0,92051.0,0.05777929]
[1765393486398,0.0108603,92080.0,92069.0,0.0108616]
[1765393486601,0.0108603,92080.0,92068.0,0.00016285]
[1765393486602,0.0108616,92069.0,92068.0,0.00016285]
[1765393486910,0.0108603,92080.0,92025.0,0.07701353]
[1765393486911,0.0108642,92048.0,92037.0,0.0108653]
[1765393487108,0.0108597,92085.0,92007.0,0.15063448]
[1765393487109,0.05746685,92100.0,92027.0,0.03842265]
[1765393487314,0.054294,92093.0,92031.0,0.03842265]
[1765393487607,0.10861478,92077.0,92028.0,0.03842265]
[1765393487808,0.00016295,92062.0,92061.0,0.0108625]
[1765393488011,0.00013705,92062.0,92052.0,0.00016295]
[1765393488208,0.0108631,92057.0,92048.0,0.00016295]
[1765393488409,0.00016295,92066.0,92055.0,0.0108631]
[1765393488611,0.36089268,92056.0,92055.0,0.0108631]
[1765393489014,0.05746685,92101.0,92055.0,0.0108631]
[1765393489015,0.3608,92088.0,92055.0,0.7716631]
[1765393489202,0.3608,92088.0,92087.0,0.0108595]
[1765393489403,0.3608,92106.0,92105.0,0.0108573]
[1765393489599,0.3608,92106.0,92085.0,0.3608]
[1765393489901,0.3608,92106.0,92070.0,0.0108614]
[1765393489902,4.639e-05,92105.0,92101.0,0.0108577]
[1765393490217,0.48269875,92130.0,92101.0,0.0108577]
[1765393490218,0.05746685,92146.0,92101.0,0.0108577]
[1765393490508,0.48269875,92150.0,92119.0,0.0108556]
[1765393490709,0.48269875,92150.0,92100.0,0.0108578]
[1765393491104,0.10853697,92149.0,92092.0,0.0542944]
[1765393491303,0.00016286,92130.0,92122.0,0.0108553]
[1765393491612,0.00016286,92130.0,92111.0,0.00016286]
[1765393491613,0.00016286,92130.0,92127.0,0.0108547]
[1765393492411,0.00016286,92130.0,92111.0,0.00016286]
[1765393492614,0.00016286,92130.0,92125.0,0.0108549]
[1765393492914,6e-08,92130.0,92125.0,0.0108549]
[1765393494314,1e-08,92142.0,92125.0,0.0108549]
[1765393494525,0.13397342,92169.0,92144.0,0.0542637]
[1765393494720,0.09605638,92177.0,92176.0,0.010849]
[1765393494921,0.09605638,92180.0,92176.0,0.010849]
[1765393495114,0.09605638,92180.0,92160.0,0.0108508]
[1765393495115,0.09605638,92185.0,92182.0,0.0108482]
[1765393495417,0.09605638,92185.0,92160.0,0.0108508]
[1765393495418,0.00037991,92193.0,92192.0,0.0108471]
[1765393495717,0.00037991,92193.0,92174.0,0.01101196]
[1765393495718,0.00037991,92193.0,92182.0,0.0108482]
[1765393496015,0.00037991,92193.0,92174.0,0.00016276]
[1765393496217,0.0108478,92187.0,92174.0,0.00016276]
[1765393496410,0.00037991,92193.0,92175.0,0.0108491]
[1765393496614,0.0108478,92187.0,92174.0,0.00016276]
[1765393496920,0.48269875,92184.0,92130.0,0.05777929]
[1765393497220,0.010857,92108.0,92096.0,0.0108584]
[1765393497411,0.010857,92108.0,92071.0,0.09629018]
[1765393497412,0.48269875,92110.0,92087.0,0.0108594]
[1765393497610,0.48269875,92110.0,92082.0,0.01086]
[1765393497810,0.48269875,92110.0,92081.0,0.03842265]
[1765393498010,0.0108575,92104.0,92087.0,0.00016286]
[1765393498214,0.0108575,92104.0,92092.0,0.0108588]
[1765393498505,0.00016286,92105.0,92088.0,0.03842265]
[1765393498710,0.00016286,92105.0,92091.0,0.03842265]
[1765393499112,0.00016286,92105.0,92097.0,0.03842265]
[1765393499309,0.0108527,92145.0,92087.0,0.00016286]
[1765393499310,0.0108548,92127.0,92114.0,0.0108562]
[1765393499619,0.0108552,92124.0,92117.0,0.0108559]
[1765393499818,0.0108563,92115.0,92106.0,0.03842265]
[1765393500113,0.0108563,92115.0,92083.0,0.0108598]
[1765393500114,0.0108591,92090.0,92088.0,0.03842265]
[1765393500314,0.0108605,92078.0,92071.0,0.05777929]
[1765393500630,0.00016286,92098.0,92072.0,0.05777929]
[1765393500919,0.10855347,92105.0,92073.0,0.04220946]
[1765393500920,0.0108593,92089.0,92073.0,0.04220946]
[1765393501112,0.0108593,92089.0,92014.0,0.0543402]
[1765393501113,0.0108669,92024.0,92005.0,0.13460352]
[1765393501317,0.0543258,92040.0,91980.0,0.13460352]
[1765393501318,0.48269875,92040.0,91980.0,0.13460352]
[1765393501509,0.0543167,92055.0,91980.0,0.13460352]
[1765393501510,0.0108686,92010.0,91986.0,0.0108714]
[1765393501709,0.0108686,92010.0,91935.0,0.19229074]
[1765393501710,0.48269875,92020.0,91955.0,0.13460352]
[1765393501922,0.48269875,92020.0,91953.0,0.0543763]
[1765393502119,0.000163,92002.0,91996.0,0.0108702]
[1765393502421,0.0108703,91996.0,91990.0,0.000163]
[1765393502728,0.48269875,92020.0,91990.0,0.0108708]
[1765393502729,7.825e-05,91995.0,91990.0,0.0108708]
[1765393503020,0.000163,92002.0,92001.0,0.0108696]
[1765393503206,0.010866,92032.0,92007.0,0.0108688]
[1765393503412,0.0108645,92045.0,91996.0,0.0108701]
[1765393503610,0.10870392,92049.0,92044.0,0.0108645]
[1765393503910,0.48269875,92090.0,92023.0,0.0543352]
[1765393503911,0.0108603,92080.0,92023.0,0.0543352]
[1765393504111,0.48269875,92120.0,92080.0,0.0108602]
[1765393504326,0.48269875,92120.0,92054.0,0.0543164]
[1765393504327,0.0108581,92099.0,92091.0,0.00016291]
[1765393504618,0.00016291,92109.0,92107.0,0.0108571]
[1765393504819,0.0108504,92164.0,92113.0,0.0108564]
[1765393504820,0.0108542,92132.0,92113.0,0.0108564]
[1765393505024,0.02664017,92131.0,92128.0,0.0108546]
[1765393505317,0.02934945,92130.0,92122.0,0.0108553]
[1765393505522,0.02934945,92129.0,92122.0,0.0108553]
[1765393505718,0.010853,92142.0,92087.0,0.0542972]
[1765393505719,0.02934945,92128.0,92115.0,0.0108561]
[1765393505919,0.02934945,92127.0,92112.0,0.00016282]
[1765393506227,0.02934945,92126.0,92112.0,0.00016282]
[1765393506520,0.0108558,92118.0,92034.0,0.0543283]
[1765393506713,0.0108588,92093.0,92050.0,0.054319]
[1765393506918,0.0108591,92091.0,92063.0,0.0108623]
[1765393507116,0.0108568,92110.0,92068.0,0.0543084]
[1765393507320,0.0108571,92107.0,92065.0,0.0543103]
[1765393507623,0.0108595,92088.0,92037.0,0.0651921]
[1765393507812,0.02937181,92106.0,92047.0,0.0108641]
[1765393507813,0.0108615,92070.0,92047.0,0.0108641]
[1765393508011,0.0108605,92079.0,92026.0,0.0108666]
[1765393508322,0.10860947,92108.0,92064.0,0.0543107]
[1765393508513,0.0108579,92101.0,92052.0,0.0543176]
[1765393508715,0.0108583,92097.0,92052.0,0.0543177]
[1765393509036,0.00016291,92087.0,92082.0,0.01086]
[1765393509317,0.13397342,92158.0,92075.0,0.00016291]
[1765393509318,0.00016291,92094.0,92075.0,0.00016291]
[1765393509518,0.00016291,92094.0,92084.0,0.0108598]
[1765393509718,0.00016291,92094.0,92075.0,0.00016291]
[1765393509925,0.0108608,92076.0,92075.0,0.00016291]
[1765393510225,0.0542873,92105.0,92075.0,0.00016291]
[1765393510226,0.07687031,92141.0,92110.0,0.0108567]
[1765393510413,0.02940653,92140.0,92134.0,0.0108538]
[1765393510613,0.9888,92178.0,92097.0,0.09636838]
[1765393510614,0.07687031,92174.0,92097.0,0.09636838]
[1765393510814,0.48269875,92140.0,92106.0,0.0108571]
[1765393511124,0.0108593,92089.0,92058.0,0.00013425]
[1765393511315,0.010854,92134.0,92058.0,0.00013425]
[1765393511316,0.00016291,92083.0,92077.0,0.0108605]
[1765393511521,0.00016291,92089.0,92071.0,0.00016291]
[1765393511727,0.00016291,92089.0,92083.0,0.0108599]
[1765393511919,0.00016291,92089.0,92088.0,0.0108593]
[1765393512117,0.48269875,92120.0,92102.0,0.0108576]
[1765393512421,0.010853,92142.0,92126.0,0.0108548]
[1765393512612,0.0108545,92130.0,92092.0,0.0108588]
[1765393512820,0.07713539,92136.0,92109.0,0.0542843]
[1765393513014,0.0108534,92139.0,92127.0,0.0108547]
[1765393513219,0.00016187,92142.0,92124.0,0.00016279]
[1765393513412,0.07713539,92137.0,92132.0,0.0108541]
[1765393513626,0.07713539,92139.0,92130.0,0.09636838]
[1765393513819,0.010855,92125.0,92124.0,0.00016279]
[1765393514018,0.0108545,92130.0,92127.0,0.09636838]
[1765393514214,0.0542744,92127.0,92058.0,0.00013425]
[1765393514414,0.05786708,92118.0,92058.0,0.00013425]
[1765393514716,0.05786708,92118.0,91332.0,0.0307]
[1765393514717,0.0108624,92062.0,92019.0,0.0108675]
[1765393514914,0.05786708,92080.0,91996.0,0.0543512]
[1765393514915,0.010864,92049.0,91996.0,0.0543512]
[1765393515116,0.00016297,92032.0,92013.0,0.00016297]
[1765393515523,0.00016297,92032.0,92031.0,0.0108661]
[1765393515724,0.0108608,92076.0,92032.0,0.0108659]
[1765393516027,0.07713539,92093.0,92072.0,0.0108612]
[1765393516028,0.0108588,92093.0,92072.0,0.0108612]
[1765393516231,0.05786708,92107.0,92033.0,0.0108657]
[1765393516531,0.10865844,92107.0,92076.0,0.0108607]
[1765393516726,0.10865844,92107.0,92087.0,0.0108594]
[1765393516727,0.00016229,92101.0,92087.0,0.0108594]
[1765393516926,0.0108579,92100.0,92087.0,0.0108594]
[1765393517132,0.00016229,92101.0,92082.0,0.00016297]
[1765393517719,0.00016229,92101.0,92099.0,0.010858]
[1765393519227,0.05786708,92150.0,92146.0,0.0108524]
[1765393519535,0.09605638,92160.0,92146.0,0.0108524]
[1765393519536,0.010851,92160.0,92146.0,0.0108524]
[1765393520036,0.05786708,92172.0,92147.0,0.0108523]
[1765393520329,0.0542343,92195.0,92084.0,0.0108598]
[1765393520330,0.0542694,92135.0,92084.0,0.0108598]
[1765393520531,0.0108528,92144.0,92056.0,0.0543153]
[1765393520532,0.48269875,92120.0,92056.0,0.0543153]
[1765393520732,0.40229993,92110.0,92068.0,0.0651699]
[1765393520924,0.41315673,92110.0,92065.0,0.05431]
[1765393521120,0.40229993,92090.0,92061.0,0.0108625]
[1765393521327,0.0108616,92069.0,92066.0,0.00016286]
[1765393521527,0.00016242,92085.0,92066.0,0.00016286]
[1765393522136,0.00016242,92085.0,92072.0,0.0108612]
[1765393522324,0.00016242,92085.0,92082.0,0.01086]
[1765393522521,0.05786708,92117.0,92102.0,0.0108577]
[1765393522734,0.0274501,92116.0,92113.0,0.0108564]
[1765393523030,0.40229993,92140.0,92129.0,0.0108545]
[1765393523232,0.40229993,92140.0,92092.0,0.054294]
[1765393523233,0.40229993,92160.0,92148.0,0.0108522]
[1765393523423,0.02745822,92159.0,92145.0,0.00016277]
[1765393523625,0.02745822,92158.0,92150.0,0.0108519]
[1765393523825,0.0108499,92169.0,92157.0,0.3608]
[1765393524026,0.010852,92150.0,92145.0,0.00016277]
[1765393524224,0.02746279,92168.0,92149.0,0.3608]
[1765393524225,0.0108517,92154.0,92149.0,0.3608]
[1765393524425,0.3608,92165.0,92149.0,0.3608]
[1765393524628,0.3608,92174.0,92149.0,0.3608]
[1765393524629,0.02728538,92164.0,92162.0,0.0108506]
[1765393524833,0.02728538,92163.0,92162.0,0.0108506]
[1765393525038,0.02728538,92163.0,92162.0,0.3608]
[1765393525332,0.03813588,92163.0,92162.0,0.3608]
[1765393525539,0.0108517,92153.0,92149.0,0.3608]
[1765393525737,0.02728538,92152.0,92149.0,0.3608]
[1765393525938,0.02728538,92151.0,92149.0,0.3608]
[1765393526135,0.05793193,92152.0,92150.0,0.010852]
[1765393526438,0.07713539,92167.0,92166.0,0.0108502]
[1765393526632,0.13397342,92189.0,92166.0,0.0108502]
[1765393526633,0.0108495,92172.0,92166.0,0.3608]
[1765393526834,0.0108495,92172.0,92158.0,0.0108511]
[1765393527128,0.07728531,92161.0,92158.0,0.0108511]
[1765393527328,0.00021715,92193.0,92175.0,0.0108491]
[1765393527329,0.09605638,92176.0,92175.0,0.0108491]
[1765393527533,0.09605638,92182.0,92181.0,0.0108484]
[1765393527841,0.09605638,92189.0,92175.0,0.7216]
[1765393528137,0.13419057,92193.0,92175.0,0.3608]
[1765393528138,0.09661017,92188.0,92175.0,0.3608]
[1765393528433,0.0108485,92180.0,92175.0,0.3608]
[1765393528840,0.45741017,92181.0,92161.0,0.3608]
[1765393529022,0.0108503,92166.0,92161.0,0.3608]
[1765393529228,0.0108503,92166.0,92157.0,0.00016277]
[1765393529229,0.010851,92159.0,92157.0,0.00016277]
[1765393529424,0.40229993,92171.0,92127.0,0.3608]
[1765393529425,0.0108539,92135.0,92127.0,0.3608]
[1765393529736,0.05792509,92133.0,92127.0,0.3608]
[1765393529933,0.05792509,92137.0,92128.0,0.0108546]
[1765393530128,0.05792509,92135.0,92132.0,0.0108541]
[1765393530324,0.05792509,92137.0,92135.0,0.0108537]
[1765393530532,0.05808754,92140.0,92135.0,0.3608]
[1765393530735,0.00016245,92140.0,92136.0,0.0108537]
[1765393530922,0.00016245,92140.0,92139.0,0.3608]
[1765393531123,0.00016245,92140.0,92122.0,0.00016277]
[1765393531339,0.00016245,92140.0,92123.0,0.0108552]
[1765393531340,0.05792509,92132.0,92123.0,0.0108552]
[1765393531535,0.00016245,92140.0,92123.0,0.0108552]
[1765393531536,0.05792509,92128.0,92123.0,0.0108552]
[1765393531839,0.05792509,92133.0,92132.0,0.0108542]
[1765393532043,0.05792509,92137.0,92132.0,0.0108542]
[1765393532342,0.05792509,92137.0,92122.0,0.00016277]
[1765393532343,0.3608,92136.0,92124.0,0.010855]
[1765393532640,0.05807512,92134.0,92124.0,0.010855]
[1765393532826,0.06892912,92134.0,92132.0,0.3608]
[1765393533138,0.0108547,92128.0,92122.0,0.00016277]
[1765393533433,0.3608,92123.0,92122.0,0.00016277]
[1765393533839,0.05810417,92132.0,92127.0,0.0108547]
[1765393534137,0.05810417,92132.0,92122.0,0.00016277]
[1765393534138,0.7216,92133.0,92122.0,0.00016277]
[1765393534335,0.3608,92125.0,92122.0,0.00016277]
[1765393534532,0.0108542,92132.0,92122.0,0.00016277]
[1765393534738,0.3608,92133.0,92126.0,0.0108548]
[1765393534942,0.3608,92133.0,92130.0,0.0108544]
[1765393535132,0.40246238,92140.0,92130.0,0.0108544]
[1765393535332,0.00016245,92140.0,92139.0,0.3716533]
[1765393535536,0.3608,92168.0,92163.0,0.0108505]
[1765393535836,0.40229993,92170.0,92167.0,0.01085]
[1765393536031,0.3608,92197.0,92189.0,0.0108474]
[1765393536442,0.3608,92197.0,92157.0,0.0108511]
[1765393536443,0.3608,92192.0,92165.0,0.3608]
[1765393536627,0.40229993,92175.0,92152.0,0.3608]
[1765393536830,0.0108516,92154.0,92143.0,0.0108528]
[1765393537032,0.40229993,92153.0,92151.0,0.0108518]
[1765393537535,0.3608,92158.0,92137.0,0.3608]
[1765393537732,0.40229993,92161.0,92146.0,0.0108524]
[1765393537939,0.40229993,92170.0,92153.0,0.3608]
[1765393538140,0.3716516,92154.0,92152.0,0.00016277]
[1765393538731,0.3608,92154.0,92152.0,0.00016277]
[1765393538931,0.41315053,92162.0,92152.0,0.00016277]
[1765393538932,0.40229993,92162.0,92161.0,0.0108507]
[1765393539139,0.00016277,92163.0,92161.0,0.0108507]
[1765393539646,0.00016277,92163.0,92152.0,0.00016277]
[1765393539842,0.3608,92161.0,92159.0,0.0108509]
[1765393540142,0.0108495,92172.0,92152.0,0.00016277]
[1765393540143,0.40229993,92180.0,92179.0,0.0108486]
[1765393540537,0.36101715,92193.0,92179.0,0.0108486]
[1765393540538,0.00021715,92193.0,92192.0,0.0108471]
[1765393540748,0.00021715,92193.0,92192.0,0.7324471]
[1765393541136,0.00021715,92193.0,92192.0,0.3608]
[1765393541334,0.3608,92204.0,92203.0,0.0108458]
[1765393541535,0.3608,92204.0,92192.0,0.3608]
[1765393541536,0.0108465,92198.0,92192.0,0.3608]
[1765393541741,0.010848,92185.0,92183.0,0.00016277]
[1765393541955,0.371648,92185.0,92183.0,0.00016277]
[1765393542244,0.010848,92185.0,92183.0,0.00016277]
[1765393542433,0.3608,92193.0,92183.0,0.00016277]
[1765393542639,0.3608,92193.0,92187.0,0.0108476]
[1765393542833,0.40229993,92202.0,92199.0,0.0108462]
[1765393543047,0.0108447,92213.0,92207.0,0.0108452]
[1765393543248,0.43826924,92216.0,92201.0,0.3608]
[1765393543249,0.0108452,92209.0,92201.0,0.00016267]
[1765393543435,0.3608,92208.0,92201.0,0.00016267]
[1765393543636,0.0108459,92203.0,92188.0,0.3608]
[1765393543847,0.010847,92194.0,92188.0,0.3608]
[1765393544160,0.0108467,92196.0,92189.0,0.0108474]
[1765393544335,0.0108467,92196.0,92172.0,0.3608]
[1765393544336,0.0108493,92174.0,92172.0,0.3608]
[1765393544553,0.0108492,92175.0,92172.0,0.3608]
[1765393544750,0.40229993,92182.0,92166.0,0.3608]
[1765393544751,0.3608,92174.0,92166.0,0.3608]
[1765393545049,0.0108502,92166.0,92138.0,0.0108534]
[1765393545247,0.3608,92141.0,92138.0,0.0108534]
[1765393545642,0.3608,92141.0,92126.0,0.0108548]
[1765393545941,0.05798895,92151.0,92149.0,0.0108522]
[1765393546250,0.3608,92182.0,92181.0,0.0108484]
[1765393546447,0.3608,92182.0,92148.0,0.0108523]
[1765393546639,0.40229993,92200.0,92167.0,0.0108499]
[1765393546640,0.3608,92168.0,92167.0,0.0108499]
[1765393547040,0.3608,92184.0,92156.0,0.0108513]
[1765393547244,0.3608,92184.0,92183.0,0.0108482]
[1765393547440,0.00016261,92193.0,92189.0,0.0108474]
[1765393547945,0.3608,92198.0,92197.0,0.0108465]
[1765393548148,0.3608,92208.0,92207.0,0.0108453]
[1765393548648,0.0108454,92207.0,92199.0,0.0108462]
[1765393548838,0.3716462,92200.0,92194.0,0.0108468]
[1765393549045,0.0108475,92189.0,92164.0,0.0108503]
[1765393549243,0.3608,92185.0,92183.0,0.0108482]
[1765393549547,0.3608,92185.0,92172.0,0.0108493]
[1765393549548,0.3608,92197.0,92193.0,0.010847]
[1765393549749,0.3608,92201.0,92197.0,0.0108464]
[1765393549950,0.3608,92201.0,92199.0,0.0108462]
[1765393550448,0.40229993,92220.0,92180.0,0.0108485]
[1765393550449,0.3608,92200.0,92180.0,0.3608]
[1765393550642,0.40338406,92240.0,92199.0,0.3608]
[1765393550841,0.00108413,92240.0,92239.0,0.3608]
[1765393551654,0.07746924,92281.0,92272.0,0.0108377]
[1765393551845,0.07746924,92278.0,92267.0,0.0001626]
[1765393552060,0.07746924,92278.0,92234.0,0.010842]
[1765393552061,0.07746924,92274.0,92263.0,0.3718013]
[1765393552250,0.09661017,92284.0,92263.0,0.0110013]
[1765393552251,0.3608,92264.0,92263.0,0.0110013]
[1765393552752,0.3608,92281.0,92263.0,0.0001626]
[1765393552949,0.00021672,92286.0,92285.0,0.0108362]
[1765393553351,0.07746924,92305.0,92301.0,0.0108343]
[1765393553651,0.43826924,92322.0,92318.0,0.0108323]
[1765393553850,0.13397342,92327.0,92324.0,0.0108316]
[1765393553851,0.07746924,92327.0,92324.0,0.0108316]
[1765393554050,0.09661017,92334.0,92329.0,0.010831]
[1765393554051,0.07746924,92334.0,92329.0,0.010831]
[1765393554264,0.07746924,92334.0,92316.0,0.0001625]
[1765393554265,0.3608,92330.0,92319.0,0.0108321]
[1765393554550,0.00108296,92340.0,92332.0,0.0108306]
[1765393554551,0.10831889,92333.0,92332.0,0.0108306]
[1765393554756,0.3608,92338.0,92332.0,0.0108306]
[1765393554947,0.3608,92338.0,92321.0,0.3608]
[1765393555146,0.3608,92338.0,92316.0,0.0001625]
[1765393555147,0.0108319,92322.0,92316.0,0.0001625]
[1765393555342,0.3608,92317.0,92305.0,0.0108338]
[1765393555544,0.40229993,92315.0,92305.0,0.0108338]
[1765393555748,0.40229993,92315.0,92297.0,0.3608]
[1765393555749,0.0108328,92314.0,92297.0,0.3608]
[1765393555947,0.3608,92317.0,92306.0,0.0108337]
[1765393556253,0.3608,92307.0,92302.0,0.0001625]
[1765393556459,0.3608,92307.0,92228.0,0.083312]
[1765393556460,0.0541694,92305.0,92263.0,0.3608]
[1765393556761,0.96781993,92312.0,92254.0,0.3608]
[1765393556762,0.3608,92275.0,92270.0,0.0108379]
[1765393557060,0.07746924,92304.0,92221.0,0.0542181]
[1765393557061,0.3608,92297.0,92290.0,0.0108355]
[1765393557247,0.3608,92310.0,92291.0,0.3608]
[1765393557443,0.3608,92306.0,92291.0,0.0001625]
[1765393557643,0.0001625,92310.0,92291.0,0.0001625]
[1765393557854,0.3608,92292.0,92262.0,0.3608]
[1765393558049,0.3608,92275.0,92263.0,0.0108387]
[1765393558359,0.07746924,92309.0,92257.0,0.00011278]
[1765393558360,0.3608,92306.0,92285.0,0.0108361]
[1765393558548,0.3608,92298.0,92286.0,0.3608]
[1765393558749,0.40229993,92296.0,92259.0,0.3608]
[1765393559046,0.40229993,92296.0,92257.0,0.00011278]
[1765393559047,0.0001625,92287.0,92282.0,0.3716365]
[1765393559357,0.0001625,92287.0,92283.0,0.0108364]
[1765393559657,0.010836,92286.0,92282.0,0.3608]
[1765393560060,0.50836877,92285.0,92268.0,0.0001625]
[1765393560259,0.3716376,92273.0,92268.0,0.0001625]
[1765393560554,0.0108393,92258.0,92257.0,0.00011278]
[1765393560755,0.054198,92257.0,92222.0,0.3608]
[1765393560957,0.054198,92257.0,92215.0,0.00108443]
[1765393560958,0.3608,92232.0,92215.0,0.00108443]
[1765393561144,0.3608,92231.0,92215.0,0.00108443]
[1765393561348,0.0542016,92250.0,92192.0,0.00011718]
[1765393561349,0.7216,92216.0,92192.0,0.00011718]
[1765393561545,0.0108467,92195.0,92192.0,0.00011718]
[1765393561747,0.0001626,92213.0,92193.0,0.3608]
[1765393562050,0.09661017,92245.0,92193.0,0.3608]
[1765393562051,0.0001627,92212.0,92211.0,0.0108449]
[1765393562249,0.0108409,92245.0,92209.0,0.3608]
[1765393562250,0.76309993,92270.0,92230.0,0.0108425]
[1765393562558,0.76309993,92270.0,92210.0,0.054225]
[1765393562559,0.3608,92270.0,92258.0,0.3608]
[1765393562854,0.3608,92260.0,92253.0,0.0108399]
[1765393563055,0.3608,92260.0,92232.0,1.5]
[1765393563056,0.0108398,92255.0,92244.0,0.010841]
[1765393563257,0.0001626,92259.0,92245.0,0.0108408]
[1765393563453,0.0001626,92259.0,92242.0,0.3608]
[1765393563454,0.0001626,92259.0,92250.0,0.3608]
[1765393563653,0.0108395,92257.0,92250.0,0.3608]
[1765393563859,0.0001626,92259.0,92251.0,0.0108402]
[1765393564175,0.0108411,92244.0,92240.0,0.0001626]
[1765393564455,0.3716412,92242.0,92240.0,0.0001626]
[1765393564662,0.00012632,92241.0,92240.0,0.0001626]
[1765393564849,0.00012632,92241.0,92201.0,0.3608]
[1765393564850,0.0108431,92227.0,92213.0,0.0108446]
[1765393565049,0.0108431,92227.0,92186.0,0.0108477]
[1765393565050,0.00012632,92226.0,92217.0,0.3608]
[1765393565252,0.40229993,92250.0,92225.0,0.3608]
[1765393565463,0.3608,92259.0,92256.0,0.0108395]
[1765393565651,0.09661017,92281.0,92243.0,0.3608]
[1765393565652,0.010837,92278.0,92268.0,0.0108381]
[1765393565848,0.0001626,92282.0,92280.0,0.0108367]
[1765393566058,2e-08,92286.0,92285.0,0.0108362]
[1765393566258,0.18423335,92317.0,92285.0,0.0108362]
[1765393566259,0.3716328,92314.0,92303.0,0.010834]
[1765393566458,0.41105993,92317.0,92291.0,0.0108354]
[1765393566664,0.010832,92321.0,92309.0,0.0108333]
[1765393566860,0.010832,92321.0,92313.0,0.0108328]
[1765393567162,0.010832,92321.0,92308.0,0.3608]
[1765393567163,0.0001625,92326.0,92322.0,0.0108317]
[1765393567363,0.3608,92339.0,92338.0,0.0108299]
[1765393567660,2.96e-06,92340.0,92338.0,0.3716299]
[1765393568358,0.05,92357.0,92353.0,0.0108282]
[1765393568661,0.05,92357.0,92350.0,0.0108285]
[1765393568857,0.4108,92357.0,92347.0,0.3608]
[1765393569068,0.3608,92349.0,92336.0,0.0108302]
[1765393569259,0.3608,92349.0,92335.0,0.3608]
[1765393569565,0.010829,92347.0,92335.0,0.3608]
[1765393569863,0.05,92357.0,92344.0,0.3716292]
[1765393570051,0.05,92357.0,92344.0,0.3608]
[1765393570258,0.0108279,92356.0,92339.0,0.3716298]
[1765393570452,0.0108279,92356.0,92331.0,0.0108307]
[1765393570453,0.0108292,92344.0,92331.0,0.0108307]
[1765393570653,0.0108292,92344.0,92330.0,0.0001625]
[1765393570859,0.3608,92352.0,92335.0,0.3608]
[1765393571055,0.05,92357.0,92330.0,0.0109934]
[1765393571258,0.0108288,92348.0,92331.0,0.0108307]
[1765393571460,0.3608,92351.0,92337.0,0.3608]
[1765393571761,0.05,92357.0,92350.0,0.3608]
[1765393571958,0.05,92357.0,92336.0,0.3608]
[1765393571959,0.3608,92353.0,92336.0,0.3608]
[1765393572366,0.3608,92337.0,92330.0,0.0001625]
[1765393572662,0.0108304,92335.0,92330.0,0.0001625]
[1765393572868,0.3608,92336.0,92315.0,0.00108325]
[1765393572869,0.0108324,92318.0,92315.0,0.00108325]
[1765393573163,0.0108342,92302.0,92297.0,0.3608]
[1765393573355,0.0108342,92302.0,92289.0,0.3608]
[1765393573553,0.3608,92305.0,92291.0,0.0108354]
[1765393573754,0.3608,92305.0,92289.0,0.3609625]
[1765393574152,0.3608,92305.0,92293.0,0.0108351]
[1765393574354,0.0001625,92307.0,92306.0,0.0108337]
[1765393574658,0.0108287,92349.0,92336.0,0.0108301]
[1765393574859,0.3608,92345.0,92336.0,0.3716301]
[1765393575065,0.3608,92355.0,92341.0,0.0108296]
[1765393575066,0.0108281,92354.0,92341.0,0.0108296]
[1765393575254,0.3608,92345.0,92337.0,0.01083]
[1765393575449,0.3608,92345.0,92335.0,0.3608]
[1765393575450,0.3608,92345.0,92340.0,0.0108296]
[1765393575765,0.0001625,92352.0,92335.0,0.3608]
[1765393575953,0.0001625,92352.0,92350.0,0.0108285]
[1765393576259,2.5e-06,92352.0,92350.0,0.0108285]
[1765393576654,0.3608,92379.0,92349.0,0.3608]
[1765393576655,0.40229993,92370.0,92356.0,0.0108278]
[1765393576957,0.3608,92379.0,92356.0,0.0108278]
[1765393577157,0.0108258,92374.0,92356.0,0.0108278]
[1765393577357,0.04730292,92357.0,92356.0,0.0108278]
[1765393578254,0.00016134,92366.0,92365.0,0.0108268]
[1765393578659,0.3608,92396.0,92390.0,0.0108238]
[1765393578960,0.40229993,92400.0,92378.0,0.3608]
[1765393579159,0.40229993,92400.0,92395.0,0.3608]
[1765393579359,0.3608,92396.0,92378.0,0.3608]
[1765393579561,0.3608,92385.0,92367.0,0.3608]
[1765393579757,0.3608,92385.0,92378.0,0.00016241]
[1765393580164,0.010825,92381.0,92378.0,0.00016241]
[1765393580755,0.0108267,92366.0,92365.0,0.00108267]
[1765393580951,0.0108267,92366.0,92348.0,0.3608]
[1765393580952,0.0108281,92355.0,92348.0,0.3608]
[1765393581158,0.3608,92366.0,92331.0,0.3608]
[1765393581159,0.3608,92356.0,92331.0,0.3608]
[1765393581352,0.3608,92339.0,92313.0,0.3716328]
[1765393581556,0.3608,92339.0,92329.0,0.0108309]
[1765393581557,0.3608,92331.0,92329.0,0.0108309]
[1765393581755,0.3608,92339.0,92329.0,0.0108309]
[1765393581956,0.3608,92339.0,92327.0,0.0108312]
[1765393582157,0.3716308,92331.0,92321.0,0.00016241]
[1765393582355,0.0108318,92322.0,92321.0,0.00016241]
[1765393582767,0.3608,92339.0,92321.0,0.00016241]
[1765393582953,0.3716299,92339.0,92330.0,0.0108308]
[1765393583159,0.3716299,92339.0,92333.0,0.0108304]
[1765393583460,0.3716299,92339.0,92321.0,0.00016241]
[1765393583461,0.0108316,92324.0,92321.0,0.00016241]
[1765393583659,0.3608,92327.0,92321.0,0.00016241]
[1765393584065,0.3716313,92327.0,92321.0,0.00016241]
[1765393584562,0.3716313,92327.0,92324.0,0.0108315]
[1765393584563,0.3608,92327.0,92324.0,0.0108315]
[1765393584969,0.3608,92326.0,92324.0,0.0108315]
[1765393585360,0.00016211,92340.0,92339.0,0.0108298]
[1765393585680,0.00016211,92340.0,92339.0,0.3716298]